bitfinex/quotes_BTCUSD_20241004
["timestamp","ask_amount","ask_price","bid_price","bid_amount"]
[1728055679860,0.001,61673.0,61672.0,0.0778]
[1728055680110,0.00812637,61674.0,61673.0,0.0015]
[1728055680296,0.00812637,61674.0,61672.0,0.0838]
[1728055680508,0.162145,61673.0,61672.0,0.0015]
[1728055680739,0.33241837,61673.0,61668.0,0.0015]
[1728055680953,0.162161,61667.0,61666.0,0.0015]
[1728055681401,0.00812637,61667.0,61666.0,0.0015]
[1728055681626,0.02542693,61668.0,61667.0,0.0015]
[1728055681906,0.40759293,61670.0,61669.0,0.0015]
[1728055682135,0.17028135,61670.0,61669.0,0.0015]
[1728055682605,0.162154,61670.0,61669.0,0.0015]
[1728055682829,0.1702814,61670.0,61669.0,0.0015]
[1728055683716,0.0081274,61670.0,61669.0,0.0015]
[1728055683969,0.34969172,61678.0,61671.0,0.162149]
[1728055683970,0.26163325,61677.0,61671.0,0.162149]
[1728055684227,0.26163325,61677.0,61672.0,0.162147]
[1728055684228,0.00812665,61676.0,61672.0,0.162147]
[1728055684443,0.00812665,61676.0,61670.0,0.0015]
[1728055684444,0.162145,61673.0,61670.0,0.16365]
[1728055684652,0.36588704,61678.0,61671.0,0.324301]
[1728055684887,0.00812667,61677.0,61670.0,0.0015]
[1728055685105,0.4157006,61677.0,61674.0,0.162141]
[1728055685336,0.4157006,61677.0,61672.0,0.324294]
[1728055685337,0.1702659,61676.0,61672.0,0.162147]
[1728055685556,0.0081269,61675.0,61670.0,0.0015]
[1728055685826,0.0081269,61675.0,61674.0,0.0015]
[1728055686059,0.16214,61675.0,61674.0,0.0015]
[1728055686262,0.16214,61675.0,61669.0,0.0792]
[1728055686263,0.162145,61673.0,61672.0,0.0015]
[1728055686478,0.162158,61668.0,61667.0,0.0015]
[1728055686714,0.162166,61665.0,61664.0,0.0015]
[1728055687778,0.1875934,61665.0,61664.0,0.0015]
[1728055688015,0.01619432,61671.0,61666.0,0.0015]
[1728055688016,0.162159,61668.0,61666.0,0.0015]
[1728055688265,0.00812759,61667.0,61666.0,0.0015]
[1728055688475,0.324292,61673.0,61666.0,0.0015]
[1728055688476,0.56974293,61671.0,61666.0,0.0015]
[1728055688690,0.324313,61669.0,61666.0,0.0015]
[1728055688919,0.162157,61669.0,61666.0,0.0015]
[1728055689143,0.162159,61668.0,61666.0,0.0015]
[1728055689375,0.17028649,61668.0,61666.0,0.0015]
[1728055689613,0.001,61667.0,61666.0,0.0015]
[1728055689855,0.01528054,61668.0,61667.0,0.185161]
[1728055690070,0.24543893,61677.0,61676.0,0.0015]
[1728055690276,0.25356508,61677.0,61676.0,0.0015]
[1728055690487,0.00812615,61677.0,61676.0,0.0015]
[1728055690701,0.00812615,61677.0,61676.0,0.0845]
[1728055690923,0.00812615,61677.0,61669.0,0.324311]
[1728055690924,0.162145,61673.0,61672.0,0.0015]
[1728055691137,0.17742682,61673.0,61672.0,0.0015]
[1728055691554,0.1855535,61673.0,61672.0,0.0015]
[1728055691803,0.01528182,61673.0,61672.0,0.0015]
[1728055692024,0.01528182,61673.0,61672.0,0.0825]
[1728055692258,0.02542372,61678.0,61675.0,0.0015]
[1728055692259,0.486413,61676.0,61675.0,0.0015]
[1728055692724,0.4945396,61676.0,61675.0,0.0015]
[1728055693173,0.50981863,61676.0,61675.0,0.0015]
[1728055693649,0.50981863,61676.0,61675.0,0.0055]
[1728055694071,0.50981863,61676.0,61675.0,0.004]
[1728055694286,0.55142477,61676.0,61675.0,0.004]
[1728055694486,0.53524317,61676.0,61675.0,0.004]
[1728055695136,0.53524317,61676.0,61672.0,0.0015]
[1728055695137,0.16214,61675.0,61672.0,0.0015]
[1728055695339,0.01527903,61674.0,61672.0,0.0015]
[1728055695551,0.01527903,61674.0,61672.0,0.163647]
[1728055695786,0.01527903,61674.0,61672.0,0.0015]
[1728055696038,0.17742131,61673.0,61672.0,0.0015]
[1728055696249,0.16215,61671.0,61670.0,0.0015]
[1728055696454,0.162166,61665.0,61664.0,0.0015]
[1728055696671,0.17744231,61665.0,61664.0,0.0015]
[1728055697098,0.04883173,61665.0,61664.0,0.0015]
[1728055697381,0.04070404,61665.0,61664.0,0.1718191]
[1728055697616,0.04070404,61665.0,61664.0,0.163669]
[1728055698063,0.17744231,61665.0,61664.0,0.0015]
[1728055698302,0.03974154,61665.0,61664.0,0.0015]
[1728055698527,0.20190754,61665.0,61664.0,0.0015]
[1728055699010,0.164166,61665.0,61664.0,0.0085]
[1728055699250,0.21105328,61665.0,61664.0,0.0085]
[1728055699478,0.21005328,61665.0,61664.0,0.0015]
[1728055699712,0.21005328,61665.0,61664.0,0.0075]
[1728055699932,0.21105328,61665.0,61664.0,0.0075]
[1728055700370,0.04888728,61665.0,61664.0,0.0075]
[1728055700641,0.04888728,61665.0,61664.0,0.1947186]
[1728055700898,0.04888728,61665.0,61664.0,0.0325496]
[1728055701116,0.04888728,61665.0,61664.0,0.0075]
[1728055701333,0.20192567,61665.0,61664.0,0.0015]
[1728055701551,0.04788728,61665.0,61664.0,0.0015]
[1728055701770,0.04788728,61665.0,61664.0,0.167669]
[1728055701985,0.04788728,61665.0,61664.0,0.0055]
[1728055702236,0.04788728,61665.0,61664.0,0.0015]
[1728055702457,0.03975967,61665.0,61664.0,0.0015]
[1728055702886,0.04888684,61665.0,61664.0,0.0075]
[1728055703086,0.04075967,61665.0,61664.0,0.169669]
[1728055704008,0.04075967,61665.0,61664.0,0.0075]
[1728055704458,0.21105283,61665.0,61664.0,0.006]
[1728055704875,0.23648111,61665.0,61664.0,0.006]
[1728055706671,0.33608111,61665.0,61664.0,0.006]
[1728055706874,0.28819428,61665.0,61664.0,0.006]
[1728055707329,0.30358071,61665.0,61664.0,0.006]
[1728055707538,0.30958071,61665.0,61664.0,0.006]
[1728055707755,0.162171,61663.0,61662.0,0.00082]
[1728055708200,0.17755743,61663.0,61662.0,0.00082]
[1728055709306,0.18355743,61663.0,61662.0,0.00082]
[1728055709751,0.168171,61663.0,61662.0,0.00082]
[1728055711427,0.170171,61663.0,61662.0,0.00082]
[1728055712521,0.46376107,61663.0,61662.0,0.00082]
[1728055712812,0.21832214,61663.0,61662.0,0.00082]
[1728055713585,0.170171,61663.0,61662.0,0.00082]
[1728055713824,0.33335771,61663.0,61662.0,0.00082]
[1728055714329,0.170171,61663.0,61662.0,0.00082]
[1728055714546,0.170671,61663.0,61662.0,0.00082]
[1728055715017,0.29169883,61663.0,61662.0,0.00082]
[1728055715245,0.29119883,61663.0,61662.0,0.00082]
[1728055715481,0.29235592,61663.0,61662.0,0.00082]
[1728055716428,0.24377372,61663.0,61662.0,0.00082]
[1728055716646,0.29235592,61663.0,61662.0,0.00082]
[1728055717296,0.25231644,61663.0,61662.0,0.00082]
[1728055717544,0.29238132,61663.0,61662.0,0.00082]
[1728055718238,0.2674476,61663.0,61662.0,0.00082]
[1728055718484,0.2183654,61663.0,61662.0,0.00082]
[1728055719586,0.25998411,61663.0,61662.0,0.00082]
[1728055720483,0.21101343,61663.0,61662.0,0.00082]
[1728055720707,0.21916189,61663.0,61662.0,0.00082]
[1728055720928,0.24384858,61663.0,61662.0,0.00082]
[1728055721157,0.4319122,61663.0,61662.0,0.00082]
[1728055721615,0.40697931,61663.0,61662.0,0.00082]
[1728055721834,0.40647931,61663.0,61662.0,0.00082]
[1728055722725,0.40811931,61663.0,61662.0,0.00082]
[1728055724322,0.22005569,61663.0,61662.0,0.00082]
[1728055725704,0.22005569,61663.0,61662.0,0.162994]
[1728055725705,0.05788469,61663.0,61662.0,0.162994]
[1728055725939,0.05788469,61663.0,61662.0,0.07792]
[1728055726430,0.22005569,61663.0,61662.0,0.00082]
[1728055726884,0.23625422,61663.0,61662.0,0.00082]
[1728055727135,0.22005569,61663.0,61662.0,0.00082]
[1728055727378,0.23625652,61663.0,61662.0,0.00082]
[1728055727589,0.17993982,61663.0,61662.0,0.00082]
[1728055727842,0.22822101,61663.0,61662.0,0.00082]
[1728055728077,0.23629327,61663.0,61662.0,0.00082]
[1728055728297,0.22009219,61663.0,61662.0,0.00082]
[1728055728993,0.05792119,61663.0,61662.0,0.00082]
[1728055729250,0.22816958,61663.0,61662.0,0.00082]
[1728055729503,0.23629797,61663.0,61662.0,0.00082]
[1728055729727,0.05792119,61663.0,61662.0,0.07802]
[1728055730173,0.05792119,61663.0,61662.0,0.240194]
[1728055730398,0.05792119,61663.0,61662.0,0.07952]
[1728055730624,0.00964,61663.0,61662.0,0.07952]
[1728055731096,0.0250823,61663.0,61662.0,0.07952]
[1728055731313,0.05791778,61663.0,61662.0,0.07802]
[1728055731717,0.22008878,61663.0,61662.0,0.07802]
[1728055732413,0.23629564,61663.0,61662.0,0.07802]
[1728055733257,0.22008878,61663.0,61662.0,0.07952]
[1728055733550,0.05791778,61663.0,61662.0,0.07952]
[1728055733722,0.05791778,61663.0,61662.0,0.435394]
[1728055733723,0.04978998,61663.0,61662.0,0.435394]
[1728055733925,0.0250823,61663.0,61662.0,0.46256436]
[1728055734151,0.00964,61663.0,61662.0,0.46256436]
[1728055734553,0.00764,61663.0,61662.0,0.46256436]
[1728055734932,0.00764,61663.0,61662.0,0.46556436]
[1728055734933,0.00264,61663.0,61662.0,0.46556436]
[1728055735140,0.00264,61663.0,61662.0,0.44256436]
[1728055735346,0.00264,61663.0,61662.0,0.43956436]
[1728055735600,0.00164,61663.0,61662.0,0.43956436]
[1728055735801,0.01805037,61663.0,61662.0,0.34886436]
[1728055736003,0.04447654,61663.0,61662.0,0.34886436]
[1728055736263,0.04347654,61663.0,61662.0,0.08252]
[1728055736465,0.04347654,61663.0,61662.0,0.244694]
[1728055737120,0.04247654,61663.0,61662.0,0.241694]
[1728055737454,0.04347654,61663.0,61662.0,0.244694]
[1728055737671,0.04447654,61663.0,61662.0,0.244694]
[1728055737917,0.04247654,61663.0,61662.0,0.241694]
[1728055738150,0.01905037,61663.0,61662.0,0.244694]
[1728055738390,0.01905037,61663.0,61662.0,0.344694]
[1728055738391,0.00364,61663.0,61662.0,0.344694]
[1728055738634,0.00364,61663.0,61662.0,0.458794]
[1728055740256,0.00364,61663.0,61662.0,0.435794]
[1728055740760,0.00364,61663.0,61662.0,0.458794]
[1728055743987,0.00364,61663.0,61662.0,0.62898071]
[1728055744237,0.00164,61676.0,61675.0,0.26864]
[1728055744492,0.00164,61676.0,61675.0,0.57690362]
[1728055745011,0.00164,61676.0,61675.0,0.36584]
[1728055745235,0.00164,61676.0,61675.0,0.33974]
[1728055745455,0.00164,61676.0,61675.0,0.0776]
[1728055745912,0.1801363,61676.0,61675.0,0.0015]
[1728055746354,0.162142,61674.0,61673.0,0.0015]
[1728055746584,0.3422753,61676.0,61672.0,0.0015]
[1728055746815,0.162145,61673.0,61672.0,0.0015]
[1728055747044,0.0153593,61673.0,61672.0,0.0015]
[1728055748125,0.0153593,61673.0,61672.0,0.170648]
[1728055748604,0.0163593,61673.0,61672.0,0.176648]
[1728055748829,0.001,61673.0,61672.0,0.276648]
[1728055749050,0.001,61673.0,61672.0,0.480648]
[1728055749536,0.001,61673.0,61672.0,0.473648]
[1728055750036,0.002,61673.0,61672.0,0.483648]
[1728055750263,0.001,61673.0,61672.0,0.48186293]
[1728055750502,0.00164,61676.0,61675.0,0.28664]
[1728055750742,0.00164,61676.0,61675.0,0.47470362]
[1728055751734,0.00264,61676.0,61675.0,0.30064]
[1728055752939,0.00364,61676.0,61675.0,0.31464]
[1728055753388,0.00364,61676.0,61675.0,0.28664]
[1728055753389,0.00164,61676.0,61675.0,0.28664]
[1728055753610,0.00264,61676.0,61675.0,0.29164]
[1728055754032,0.00264,61676.0,61675.0,0.47970362]
[1728055754236,0.00264,61676.0,61675.0,0.49370362]
[1728055755307,0.00090077,61676.0,61675.0,0.49370362]
[1728055757829,0.00090077,61676.0,61675.0,0.30564]
[1728055758550,0.00172077,61676.0,61675.0,0.30564]
[1728055760082,0.01710716,61676.0,61675.0,0.30564]
[1728055760552,0.01710716,61676.0,61675.0,0.18264]
[1728055761464,0.01710716,61676.0,61675.0,0.18350205]
[1728055761920,0.01710716,61676.0,61675.0,0.18264]
[1728055762424,0.01620639,61676.0,61675.0,0.17764]
[1728055762640,0.01620639,61676.0,61675.0,0.35670362]
[1728055762887,0.01820639,61676.0,61675.0,0.36670362]
[1728055763340,0.01720639,61676.0,61675.0,0.35670362]
[1728055763605,0.00082,61676.0,61675.0,0.35170362]
[1728055763820,0.04289177,61676.0,61675.0,0.36870362]
[1728055764035,0.04289177,61676.0,61675.0,0.36370362]
[1728055764264,0.06655634,61676.0,61675.0,0.35170362]
[1728055764500,0.06855634,61676.0,61675.0,0.36870362]
[1728055764743,0.0839717,61676.0,61675.0,0.36870362]
[1728055765657,0.0839717,61676.0,61675.0,0.18064]
[1728055766888,0.0839717,61676.0,61675.0,0.0185]
[1728055767124,0.2461087,61676.0,61675.0,0.0185]
[1728055768767,0.01620594,61684.0,61675.0,0.55585033]
[1728055769011,0.02542048,61690.0,61675.0,0.55585033]
[1728055769012,0.02542048,61690.0,61687.0,0.005]
[1728055769269,0.24543893,61702.0,61684.0,0.2954]
[1728055769270,0.24543893,61702.0,61701.0,0.186571]
[1728055769506,0.24543893,61702.0,61701.0,0.47463462]
[1728055769951,0.24543893,61716.0,61708.0,0.163553]
[1728055770209,0.24543893,61716.0,61708.0,0.35161662]
[1728055770426,0.24543893,61716.0,61715.0,0.0015]
[1728055770922,0.24543893,61716.0,61709.0,0.18806362]
[1728055771167,0.162034,61716.0,61705.0,0.16356]
[1728055771449,0.162035,61715.0,61708.0,0.0015]
[1728055771653,0.162035,61715.0,61694.0,0.1]
[1728055771654,0.0763,61711.0,61694.0,0.1]
[1728055771911,0.0763,61711.0,61700.0,0.24543893]
[1728055772139,0.0763,61711.0,61701.0,0.013]
[1728055772140,0.163069,61702.0,61701.0,0.013]
[1728055772396,0.163069,61702.0,61692.0,0.0015]
[1728055772397,0.324129,61704.0,61692.0,0.0015]
[1728055772631,0.162067,61703.0,61693.0,0.162092]
[1728055772866,0.162067,61703.0,61694.0,0.1]
[1728055773111,0.24543893,61705.0,61700.0,0.001]
[1728055773331,0.324101,61710.0,61700.0,0.001]
[1728055773332,0.007,61702.0,61700.0,0.001]
[1728055773547,0.007,61702.0,61696.0,0.0015]
[1728055773802,0.0928,61704.0,61696.0,0.0015]
[1728055773803,0.0928,61704.0,61696.0,0.325666]
[1728055774094,0.006,61703.0,61696.0,0.0015]
[1728055774328,0.162069,61702.0,61696.0,0.0015]
[1728055774805,0.168067,61703.0,61696.0,0.0015]
[1728055775053,0.006,61703.0,61693.0,0.324183]
[1728055775282,0.162067,61703.0,61695.0,0.162087]
[1728055775534,0.416931,61704.0,61697.0,0.0015]
[1728055775535,0.0928,61704.0,61697.0,0.0015]
[1728055775766,0.001,61702.0,61694.0,0.0015]
[1728055775998,0.02541326,61702.0,61696.0,0.001]
[1728055776244,0.162082,61697.0,61696.0,0.001]
[1728055776735,0.243182,61697.0,61696.0,0.001]
[1728055777215,0.162098,61691.0,61685.0,0.162112]
[1728055777455,0.162099,61691.0,61687.0,0.24543893]
[1728055777700,0.162099,61691.0,61686.0,0.16211]
[1728055777701,0.162099,61691.0,61688.0,0.0015]
[1728055777934,0.162106,61688.0,61684.0,0.0015]
[1728055778168,0.324177,61695.0,61682.0,0.0015]
[1728055778414,0.162101,61690.0,61685.0,0.162112]
[1728055778887,0.324192,61692.0,61685.0,0.162112]
[1728055778888,0.02321335,61689.0,61685.0,0.162112]
[1728055779103,0.02321335,61688.0,61685.0,0.162112]
[1728055779320,0.02321335,61687.0,61684.0,0.0075]
[1728055779575,0.324192,61692.0,61684.0,0.006]
[1728055779576,0.18532535,61686.0,61684.0,0.006]
[1728055779819,0.18532735,61685.0,61680.0,0.162126]
[1728055780036,0.02320529,61684.0,61683.0,0.0015]
[1728055780496,0.40753493,61692.0,61683.0,0.0015]
[1728055780717,0.40753493,61692.0,61686.0,0.324221]
[1728055780718,0.02321886,61691.0,61686.0,0.324221]
[1728055780938,0.03773029,61690.0,61688.0,0.162104]
[1728055781151,0.03773029,61689.0,61684.0,0.002]
[1728055781367,0.24543893,61692.0,61688.0,0.163606]
[1728055781595,0.0377461,61691.0,61688.0,0.163606]
[1728055781844,0.24543893,61692.0,61685.0,0.0015]
[1728055781845,0.162106,61688.0,61685.0,0.0015]
[1728055782080,0.0377461,61690.0,61685.0,0.163613]
[1728055782081,0.0377461,61687.0,61685.0,0.163613]
[1728055782291,0.0377461,61686.0,61685.0,0.163613]
[1728055782990,0.01451773,61686.0,61685.0,0.163613]
[1728055783220,0.01451773,61686.0,61685.0,0.164613]
[1728055783476,0.162099,61691.0,61690.0,0.0015]
[1728055784147,0.324191,61692.0,61686.0,0.0015]
[1728055784354,0.162104,61689.0,61686.0,0.0015]
[1728055784575,0.324204,61690.0,61686.0,0.0015]
[1728055784791,0.18530446,61689.0,61686.0,0.0015]
[1728055785051,0.02319946,61688.0,61686.0,0.0015]
[1728055785295,0.18530746,61687.0,61686.0,0.0015]
[1728055785565,0.03769912,61687.0,61686.0,0.0015]
[1728055786226,0.22522617,61687.0,61686.0,0.0015]
[1728055786435,0.06311817,61687.0,61686.0,0.0025]
[1728055786661,0.22522617,61687.0,61686.0,0.0025]
[1728055786891,0.18752705,61687.0,61686.0,0.0045]
[1728055787135,0.22520623,61687.0,61686.0,0.0035]
[1728055787375,0.22520623,61687.0,61686.0,0.002]
[1728055788073,0.19978718,61687.0,61686.0,0.002]
[1728055788310,0.03767918,61687.0,61686.0,0.002]
[1728055788569,0.03767918,61687.0,61686.0,0.006]
[1728055788780,0.19978718,61687.0,61686.0,0.004]
[1728055788997,0.20078718,61687.0,61686.0,0.0055]
[1728055789224,0.20078718,61687.0,61686.0,0.0015]
[1728055789483,0.20078718,61687.0,61686.0,0.0025]
[1728055789703,0.20078718,61687.0,61686.0,0.0045]
[1728055789932,0.20078718,61687.0,61686.0,0.0035]
[1728055790157,0.17759999,61687.0,61686.0,0.0075]
[1728055790387,0.163108,61687.0,61686.0,0.0075]
[1728055790606,0.20077563,61687.0,61686.0,0.0075]
[1728055793081,0.03866763,61687.0,61686.0,0.0075]
[1728055793347,0.20077563,61687.0,61686.0,0.0075]
[1728055794046,0.001,61687.0,61686.0,0.0075]
[1728055794320,0.20078559,61687.0,61686.0,0.0075]
[1728055794567,0.03867759,61687.0,61686.0,0.0075]
[1728055794792,0.03867759,61687.0,61686.0,0.169611]
[1728055794793,0.01549138,61687.0,61686.0,0.169611]
[1728055795013,0.01549138,61687.0,61686.0,0.17114533]
[1728055795234,0.02641691,61687.0,61686.0,0.17114533]
[1728055795471,0.02641691,61687.0,61686.0,0.16714533]
[1728055795963,0.02641691,61687.0,61686.0,0.17814533]
[1728055795964,0.02541691,61687.0,61686.0,0.17814533]
[1728055796183,0.02641691,61687.0,61686.0,0.19178533]
[1728055797336,0.02641691,61687.0,61686.0,0.190251]
[1728055798240,0.001,61687.0,61686.0,0.190251]
[1728055799621,0.01550652,61687.0,61686.0,0.190251]
[1728055800566,0.01550652,61687.0,61686.0,0.02814]
[1728055800812,0.17761452,61687.0,61686.0,0.02814]
[1728055801035,0.20083956,61687.0,61686.0,0.02664]
[1728055801332,0.20083956,61687.0,61686.0,0.02814]
[1728055801562,0.22625784,61687.0,61686.0,0.02664]
[1728055801817,0.22625784,61687.0,61686.0,0.01364]
[1728055802053,0.22525784,61687.0,61686.0,0.00164]
[1728055802324,0.22525784,61687.0,61686.0,0.00964]
[1728055802548,0.22525784,61687.0,61675.0,0.00164]
[1728055802549,0.162137,61676.0,61675.0,0.00164]
[1728055803236,0.18534809,61676.0,61675.0,0.00164]
[1728055803478,0.19985502,61676.0,61675.0,0.00164]
[1728055803755,0.4252146,61676.0,61675.0,0.00164]
[1728055804195,0.37715502,61676.0,61675.0,0.00164]
[1728055804420,0.42568196,61676.0,61675.0,0.00164]
[1728055804700,0.42568196,61676.0,61662.0,0.00082]
[1728055804701,0.39014417,61676.0,61662.0,0.00082]
[1728055804975,0.35023462,61663.0,61662.0,0.00082]
[1728055805210,0.35023462,61663.0,61645.0,0.00164]
[1728055805211,0.162674,61662.0,61645.0,0.00164]
[1728055805428,0.0005,61654.0,61645.0,0.00164]
[1728055805699,0.35026962,61650.0,61645.0,0.00164]
[1728055805974,0.35026962,61650.0,61645.0,0.00314]
[1728055805975,0.162206,61650.0,61645.0,0.00314]
[1728055806276,0.19992402,61650.0,61645.0,0.00164]
[1728055806496,0.03771802,61650.0,61649.0,0.163848]
[1728055806738,0.01450693,61650.0,61649.0,0.164848]
[1728055806983,0.03994258,61650.0,61649.0,0.00264]
[1728055807710,0.02543565,61650.0,61649.0,0.164848]
[1728055807957,0.01,61654.0,61649.0,0.164848]
[1728055807958,0.01,61654.0,61649.0,0.00264]
[1728055808169,0.24543893,61662.0,61652.0,0.3244]
[1728055808445,0.0144254,61661.0,61657.0,0.18806362]
[1728055808659,0.25986433,61661.0,61660.0,0.162179]
[1728055808887,0.24543893,61669.0,61665.0,0.162165]
[1728055809142,0.162168,61665.0,61659.0,0.324361]
[1728055809365,0.0374928,61668.0,61662.0,0.324346]
[1728055809581,0.0374928,61668.0,61657.0,0.26806362]
[1728055809582,0.01442031,61667.0,61663.0,0.162171]
[1728055809846,0.24543893,61668.0,61661.0,0.324353]
[1728055810101,0.01442031,61667.0,61664.0,0.324336]
[1728055810330,0.324264,61678.0,61664.0,0.324336]
[1728055810331,0.01442031,61669.0,61666.0,0.18806362]
[1728055810547,0.24543893,61669.0,61668.0,0.162158]
[1728055810844,0.324264,61679.0,61666.0,0.18806362]
[1728055810845,0.56971693,61676.0,61671.0,0.16215]
[1728055811068,0.56971693,61676.0,61664.0,0.162167]
[1728055811069,0.162159,61668.0,61664.0,0.162167]
[1728055811309,0.324309,61670.0,61660.0,0.324358]
[1728055811310,0.01441121,61667.0,61660.0,0.324358]
[1728055811568,0.002,61669.0,61663.0,0.18806362]
[1728055811811,0.24543893,61668.0,61666.0,0.51238962]
[1728055812056,0.24543893,61668.0,61667.0,0.162161]
[1728055812305,0.25143893,61676.0,61667.0,0.162161]
[1728055812306,0.162151,61671.0,61667.0,0.16216]
[1728055812523,0.32429,61674.0,61664.0,0.324336]
[1728055812747,0.324302,61671.0,61667.0,0.0015]
[1728055812973,0.01,61669.0,61665.0,0.162164]
[1728055813227,0.01,61669.0,61666.0,0.162162]
[1728055813504,0.01,61669.0,61664.0,0.0015]
[1728055813764,0.01,61669.0,61665.0,0.162165]
[1728055813962,0.172156,61669.0,61665.0,0.162165]
[1728055814223,0.01441345,61670.0,61664.0,0.0015]
[1728055814443,0.01441848,61669.0,61666.0,0.162163]
[1728055814666,0.17656745,61670.0,61666.0,0.162163]
[1728055814955,0.17656745,61670.0,61669.0,0.0015]
[1728055814956,0.01441345,61670.0,61669.0,0.0015]
[1728055815176,0.17656645,61670.0,61669.0,0.0015]
[1728055815426,0.17656645,61670.0,61668.0,0.0015]
[1728055815427,0.04083957,61670.0,61668.0,0.0015]
[1728055815674,0.04083957,61670.0,61669.0,0.162156]
[1728055815888,0.03983957,61670.0,61669.0,0.162156]
[1728055816107,0.03983957,61670.0,61668.0,0.0015]
[1728055816330,0.04083957,61670.0,61666.0,0.0015]
[1728055816833,0.04083957,61670.0,61669.0,0.162156]
[1728055817508,0.03983957,61670.0,61669.0,0.162156]
[1728055817731,0.04083957,61670.0,61669.0,0.163656]
[1728055818197,0.01541345,61670.0,61669.0,0.163656]
[1728055818896,0.01641345,61670.0,61669.0,0.163656]
[1728055819125,0.01541345,61670.0,61669.0,0.163656]
[1728055819590,0.01641345,61670.0,61669.0,0.163656]
[1728055820836,0.01641345,61670.0,61668.0,0.0015]
[1728055821052,0.162161,61667.0,61666.0,0.00164]
[1728055821276,0.1766203,61667.0,61666.0,0.00164]
[1728055821545,0.52936259,61667.0,61666.0,0.00164]
[1728055821779,0.19975828,61667.0,61666.0,0.00164]
[1728055822659,0.20075828,61667.0,61666.0,0.00164]
[1728055822935,0.1776203,61667.0,61666.0,0.00164]
[1728055823213,0.20080854,61667.0,61666.0,0.00164]
[1728055823426,0.18632872,61667.0,61666.0,0.00164]
[1728055823668,0.20080817,61667.0,61666.0,0.00164]
[1728055823906,0.22297529,61667.0,61666.0,0.00164]
[1728055824392,0.23497529,61667.0,61666.0,0.00164]
[1728055824858,0.22297529,61667.0,61666.0,0.00164]
[1728055825100,0.06081429,61667.0,61666.0,0.00164]
[1728055825315,0.06081429,61667.0,61666.0,0.163803]
[1728055825316,0.03764717,61667.0,61666.0,0.163803]
[1728055825563,0.03764717,61667.0,61666.0,0.165303]
[1728055825564,0.02316772,61667.0,61666.0,0.165303]
[1728055826068,0.02316772,61667.0,61666.0,0.247203]
[1728055827005,0.02316772,61667.0,61666.0,0.270203]
[1728055827257,0.02316772,61667.0,61666.0,0.43338971]
[1728055827983,0.02316772,61667.0,61666.0,0.272203]
[1728055828227,0.02416772,61667.0,61666.0,0.249203]
[1728055828441,0.02416772,61667.0,61666.0,0.247203]
[1728055828684,0.02416772,61667.0,61666.0,0.249203]
[1728055828953,0.02516772,61667.0,61666.0,0.249203]
[1728055829196,0.02316772,61667.0,61666.0,0.247203]
[1728055829475,0.02316772,61667.0,61666.0,0.252203]
[1728055829723,0.02416772,61667.0,61666.0,0.252203]
[1728055830524,0.02416772,61667.0,61666.0,0.275203]
[1728055831014,0.02516772,61667.0,61666.0,0.275203]
[1728055831764,0.02416772,61667.0,61666.0,0.270203]
[1728055832735,0.002,61667.0,61666.0,0.272203]
[1728055833243,0.001,61667.0,61666.0,0.270203]
[1728055834474,0.001,61667.0,61666.0,0.165303]
[1728055835216,0.002,61667.0,61666.0,0.167303]
[1728055835707,0.001,61667.0,61666.0,0.167303]
[1728055835942,0.000821,61669.0,61668.0,0.163658]
[1728055836162,0.000821,61669.0,61668.0,0.63790833]
[1728055836389,0.000821,61669.0,61668.0,0.71950833]
[1728055837562,0.000821,61669.0,61668.0,0.55632162]
[1728055837809,0.000821,61669.0,61668.0,0.263658]
[1728055838062,0.01535455,61669.0,61668.0,0.263658]
[1728055838325,0.01535455,61669.0,61666.0,0.00364]
[1728055838326,0.03861397,61669.0,61666.0,0.00364]
[1728055838538,0.03861397,61669.0,61666.0,0.00164]
[1728055838539,0.252461,61667.0,61666.0,0.00164]
[1728055838777,0.29025397,61667.0,61666.0,0.00164]
[1728055839229,0.252461,61667.0,61666.0,0.00164]
[1728055839734,0.27573237,61667.0,61666.0,0.00164]
[1728055839946,0.29027698,61667.0,61666.0,0.00164]
[1728055840169,0.30582203,61667.0,61666.0,0.00164]
[1728055840581,0.30582203,61667.0,61666.0,0.00264]
[1728055841092,0.38632203,61667.0,61666.0,0.00264]
[1728055841333,0.81982458,61667.0,61666.0,0.00264]
[1728055841555,0.57338565,61667.0,61666.0,0.00264]
[1728055841798,0.39332203,61667.0,61666.0,0.00264]
[1728055842097,0.39332203,61667.0,61666.0,0.00164]
[1728055842310,0.60038565,61667.0,61666.0,0.00164]
[1728055842530,0.59238565,61667.0,61666.0,0.00164]
[1728055842745,0.57338565,61667.0,61666.0,0.00164]
[1728055842965,0.58738565,61667.0,61666.0,0.00164]
[1728055843188,0.58684104,61667.0,61666.0,0.00164]
[1728055843429,0.69821133,61667.0,61666.0,0.00164]
[1728055843661,0.6360379,61667.0,61666.0,0.00164]
[1728055843898,0.6360379,61667.0,61661.0,0.001642]
[1728055843899,0.162174,61662.0,61661.0,0.001642]
[1728055844136,0.162674,61662.0,61661.0,0.001642]
[1728055844617,0.162206,61650.0,61643.0,0.24543893]
[1728055844843,0.35341838,61650.0,61643.0,0.24543893]
[1728055845079,0.37935574,61650.0,61641.0,0.0002]
[1728055845776,0.37885574,61650.0,61641.0,0.0002]
[1728055846002,0.39185574,61650.0,61641.0,0.0002]
[1728055846241,0.36434336,61650.0,61641.0,0.0002]
[1728055846479,0.39182252,61650.0,61641.0,0.0002]
[1728055846708,0.64776145,61650.0,61641.0,0.0002]
[1728055846933,0.40232252,61650.0,61641.0,0.0002]
[1728055847195,0.74776145,61650.0,61641.0,0.0002]
[1728055847438,0.35077962,61646.0,61641.0,0.0002]
[1728055847660,0.36475878,61646.0,61641.0,0.0002]
[1728055847890,0.45946036,61646.0,61641.0,0.0002]
[1728055848137,0.86176203,61646.0,61641.0,0.0002]
[1728055848363,0.262227,61642.0,61641.0,0.0002]
[1728055848590,0.35350616,61642.0,61641.0,0.0002]
[1728055848837,0.35400616,61642.0,61641.0,0.0002]
[1728055849306,0.35400616,61642.0,61633.0,0.00164]